[Event "Late-Titled-Tuesday-Blitz-September-05-2023"]
[Site "Chess.com"]
[Date "2023.09.05"]
[Round "6"]
[White "schack_vit"]
[Black "Orest_Vovk"]
[Result "1-0"]
[WhiteElo "2426"]
[BlackElo "2576"]
[TimeControl "180+1"]
[EndTime "15:07:04 PDT"]
[Termination "schack_vit won on time"]

1. c4 {[%clk 0:03:00.9]} 1... g5 {[%clk 0:02:48.8]} 2. g3 {[%clk 0:02:55.3]}
2... g4 {[%clk 0:02:47.4]} 3. Nc3 {[%clk 0:02:53.1]} 3... Bg7 {[%clk 0:02:46.7]}
4. d4 {[%clk 0:02:52.7]} 4... c5 {[%clk 0:02:44.7]} 5. Be3 {[%clk 0:02:45.4]}
5... Nc6 {[%clk 0:02:22.7]} 6. dxc5 {[%clk 0:02:42.7]} 6... Bxc3+ {[%clk
0:02:21.5]} 7. bxc3 {[%clk 0:02:42.7]} 7... Qa5 {[%clk 0:02:22.1]} 8. Qd2 {[%clk
0:02:41.5]} 8... Nf6 {[%clk 0:02:21.1]} 9. Bg2 {[%clk 0:02:41.5]} 9... h5 {[%clk
0:02:19.9]} 10. h3 {[%clk 0:02:39.7]} 10... Qa4 {[%clk 0:02:11.7]} 11. hxg4
{[%clk 0:02:37.4]} 11... Nxg4 {[%clk 0:02:07.6]} 12. Bf3 {[%clk 0:02:03.9]}
12... Nxe3 {[%clk 0:01:55.1]} 13. Qxe3 {[%clk 0:02:04.8]} 13... Qxc4 {[%clk
0:01:48.5]} 14. Bxh5 {[%clk 0:01:57.8]} 14... Kd8 {[%clk 0:01:47.3]} 15. Rh4
{[%clk 0:01:53.7]} 15... Qb5 {[%clk 0:01:16.7]} 16. Bxf7 {[%clk 0:01:45.5]}
16... Rxh4 {[%clk 0:01:14.4]} 17. gxh4 {[%clk 0:01:46.4]} 17... b6 {[%clk
0:01:04.1]} 18. h5 {[%clk 0:01:43.9]} 18... Ba6 {[%clk 0:00:58.5]} 19. Nf3
{[%clk 0:01:19.4]} 19... bxc5 {[%clk 0:00:53.2]} 20. c4 {[%clk 0:01:01]} 20...
Qb2 {[%clk 0:00:47.7]} 21. Rd1 {[%clk 0:00:58.4]} 21... Qf6 {[%clk 0:00:29.4]}
22. Bd5 {[%clk 0:00:49]} 22... Rc8 {[%clk 0:00:11.2]} 23. Qxc5 {[%clk
0:00:40.9]} 23... Qc3+ {[%clk 0:00:09.2]} 24. Kf1 {[%clk 0:00:41]} 24... Qf6
{[%clk 0:00:08.2]} 25. Qe3 {[%clk 0:00:39.9]} 25... Kc7 {[%clk 0:00:07.6]} 26.
Bxc6 {[%clk 0:00:39.2]} 26... Qxc6 {[%clk 0:00:07.1]} 27. Qxa7+ {[%clk
0:00:39.2]} 27... Bb7 {[%clk 0:00:07.2]} 28. Rb1 {[%clk 0:00:29.8]} 28... Ra8
{[%clk 0:00:05.6]} 29. Qe3 {[%clk 0:00:26.6]} 29... Rxa2 {[%clk 0:00:05.5]} 30.
Qxe7 {[%clk 0:00:26.3]} 30... Qh6 {[%clk 0:00:03.4]} 31. Rd1 {[%clk 0:00:19.9]}
31... Bc6 {[%clk 0:00:03.3]} 32. Qe5+ {[%clk 0:00:17.4]} 32... Kc8 {[%clk
0:00:02.6]} 33. Qg5 {[%clk 0:00:17.1]} 33... Qh8 {[%clk 0:00:02.2]} 34. Ne5
{[%clk 0:00:15]} 34... Ra5 {[%clk 0:00:01.4]} 35. f4 {[%clk 0:00:13.3]} 35...
Rc5 {[%clk 0:00:01.3]} 36. h6 {[%clk 0:00:13.3]} 1-0

[Event "Late-Titled-Tuesday-Blitz-September-05-2023"]
[Site "Chess.com"]
[Date "2023.09.05"]
[Round "6"]
[White "maurovargas01"]
[Black "MariaFominykh"]
[Result "0-1"]
[WhiteElo "1862"]
[BlackElo "2278"]
[TimeControl "180+1"]
[EndTime "15:07:07 PDT"]
[Termination "MariaFominykh won on time"]

1. e4 {[%clk 0:02:51.4]} 1... g6 {[%clk 0:02:59.5]} 2. Nc3 {[%clk 0:02:49.8]}
2... Bg7 {[%clk 0:03:00.1]} 3. f4 {[%clk 0:02:50.5]} 3... c6 {[%clk 0:02:53.9]}
4. Nf3 {[%clk 0:02:51.4]} 4... d5 {[%clk 0:02:54.1]} 5. e5 {[%clk 0:02:51.4]}
5... Nh6 {[%clk 0:02:44.7]} 6. d3 {[%clk 0:02:50.8]} 6... O-O {[%clk 0:02:43.7]}
7. g3 {[%clk 0:02:49.1]} 7... f6 {[%clk 0:02:43.7]} 8. Bg2 {[%clk 0:02:45.4]}
8... d4 {[%clk 0:01:53]} 9. Ne4 {[%clk 0:02:44.2]} 9... Nf7 {[%clk 0:01:42.6]}
10. exf6 {[%clk 0:02:36.9]} 10... exf6 {[%clk 0:01:42.9]} 11. O-O {[%clk
0:02:36.4]} 11... Na6 {[%clk 0:01:36.7]} 12. Bd2 {[%clk 0:02:21.2]} 12... Be6
{[%clk 0:01:34]} 13. a3 {[%clk 0:02:17.4]} 13... c5 {[%clk 0:01:25.1]} 14. h3
{[%clk 0:02:12.9]} 14... Qd7 {[%clk 0:01:18.4]} 15. g4 {[%clk 0:02:10.2]} 15...
Nd6 {[%clk 0:01:12.4]} 16. Qe1 {[%clk 0:02:01.3]} 16... Rae8 {[%clk 0:01:04.4]}
17. b4 {[%clk 0:01:59.4]} 17... Bd5 {[%clk 0:00:42.5]} 18. bxc5 {[%clk
0:01:56.2]} 18... Nxe4 {[%clk 0:00:40.5]} 19. dxe4 {[%clk 0:01:52.2]} 19... Bxe4
{[%clk 0:00:39.1]} 20. Qh4 {[%clk 0:01:43.5]} 20... Nxc5 {[%clk 0:00:36.1]} 21.
Bb4 {[%clk 0:01:41.3]} 21... b6 {[%clk 0:00:34]} 22. Rad1 {[%clk 0:01:39.9]}
22... a5 {[%clk 0:00:20.4]} 23. Rxd4 {[%clk 0:01:35.6]} 23... Qc7 {[%clk
0:00:20.6]} 24. Be1 {[%clk 0:01:18.9]} 24... Qxf4 {[%clk 0:00:16.5]} 25. Bg3
{[%clk 0:00:50.7]} 25... Qe3+ {[%clk 0:00:12.4]} 26. Bf2 {[%clk 0:00:46.1]}
26... Qxa3 {[%clk 0:00:12.5]} 27. Rd6 {[%clk 0:00:22.8]} 27... Bxf3 {[%clk
0:00:11.6]} 28. Rxb6 {[%clk 0:00:15]} 28... Bxg2 {[%clk 0:00:10.9]} 29. Kxg2
{[%clk 0:00:13.7]} 29... Ne4 {[%clk 0:00:11]} 30. Bd4 {[%clk 0:00:09.7]} 30...
Qa2 {[%clk 0:00:09.2]} 0-1

[Event "Late-Titled-Tuesday-Blitz-September-05-2023"]
[Site "Chess.com"]
[Date "2023.09.05"]
[Round "6"]
[White "colegiodemadrid"]
[Black "Zhigalko_Sergei"]
[Result "0-1"]
[WhiteElo "2507"]
[BlackElo "2895"]
[TimeControl "180+1"]
[EndTime "15:07:08 PDT"]
[Termination "Zhigalko_Sergei won on time"]

1. e4 {[%clk 0:02:58.1]} 1... c5 {[%clk 0:03:00.1]} 2. Nf3 {[%clk 0:02:57.6]}
2... Nc6 {[%clk 0:03:00.4]} 3. d4 {[%clk 0:02:58.5]} 3... cxd4 {[%clk
0:03:00.4]} 4. Nxd4 {[%clk 0:02:59.4]} 4... Nf6 {[%clk 0:03:00.3]} 5. Nc3 {[%clk
0:03:00.2]} 5... e5 {[%clk 0:03:00.4]} 6. Ndb5 {[%clk 0:03:00.6]} 6... d6 {[%clk
0:03:00.7]} 7. Bg5 {[%clk 0:03:01.4]} 7... a6 {[%clk 0:03:00.9]} 8. Na3 {[%clk
0:03:01.9]} 8... b5 {[%clk 0:03:01.3]} 9. Nd5 {[%clk 0:03:02.3]} 9... Be7 {[%clk
0:03:01.5]} 10. Bxf6 {[%clk 0:03:02.8]} 10... Bxf6 {[%clk 0:03:02.4]} 11. c3
{[%clk 0:03:03.5]} 11... Bg5 {[%clk 0:03:02.8]} 12. Nc2 {[%clk 0:03:03.8]} 12...
Ne7 {[%clk 0:03:03.4]} 13. a4 {[%clk 0:02:54.9]} 13... bxa4 {[%clk 0:03:04.3]}
14. Ncb4 {[%clk 0:02:49.6]} 14... O-O {[%clk 0:03:04.3]} 15. Rxa4 {[%clk
0:02:48.8]} 15... a5 {[%clk 0:03:04.1]} 16. Nxe7+ {[%clk 0:02:42.6]} 16... Qxe7
{[%clk 0:03:04]} 17. Nd5 {[%clk 0:02:42.1]} 17... Qb7 {[%clk 0:03:03.5]} 18. b3
{[%clk 0:02:34.7]} 18... Bd7 {[%clk 0:02:59.7]} 19. Ra2 {[%clk 0:02:31.6]} 19...
Rfc8 {[%clk 0:02:52.4]} 20. Bc4 {[%clk 0:02:30.9]} 20... a4 {[%clk 0:02:52.5]}
21. O-O {[%clk 0:02:28.6]} 21... Rab8 {[%clk 0:02:43.4]} 22. Ra3 {[%clk
0:02:16.5]} 22... Qa7 {[%clk 0:01:35.2]} 23. Qa1 {[%clk 0:01:44.2]} 23... Qb7
{[%clk 0:01:20.4]} 24. Rxa4 {[%clk 0:01:24.6]} 24... Bxa4 {[%clk 0:01:18.9]} 25.
Qxa4 {[%clk 0:01:25.2]} 25... Ra8 {[%clk 0:00:59.7]} 26. Qb5 {[%clk 0:01:24.5]}
26... Qa7 {[%clk 0:00:19.5]} 27. g3 {[%clk 0:01:10.6]} 27... g6 {[%clk
0:00:16.9]} 28. h4 {[%clk 0:01:01.6]} 28... Bd8 {[%clk 0:00:12.7]} 29. h5 {[%clk
0:00:51.9]} 29... Kg7 {[%clk 0:00:12.4]} 30. Kg2 {[%clk 0:00:34.9]} 30... Rc5
{[%clk 0:00:11.3]} 31. Qe8 {[%clk 0:00:13.9]} 31... Bg5 {[%clk 0:00:11.1]} 32.
h6+ {[%clk 0:00:07.2]} 32... Kxh6 {[%clk 0:00:11]} 33. Rh1+ {[%clk 0:00:05.4]}
33... Kg7 {[%clk 0:00:11.5]} 0-1

[Event "Late-Titled-Tuesday-Blitz-September-05-2023"]
[Site "Chess.com"]
[Date "2023.09.05"]
[Round "6"]
[White "venturov"]
[Black "GianmarcoVaR"]
[Result "1-0"]
[WhiteElo "2464"]
[BlackElo "2608"]
[TimeControl "180+1"]
[EndTime "15:07:11 PDT"]
[Termination "venturov won on time"]

1. Nf3 {[%clk 0:03:00.9]} 1... Nf6 {[%clk 0:03:00]} 2. b3 {[%clk 0:03:00.5]}
2... d5 {[%clk 0:03:00.6]} 3. Bb2 {[%clk 0:02:59.8]} 3... c6 {[%clk 0:03:01.5]}
4. d3 {[%clk 0:02:58.8]} 4... Bf5 {[%clk 0:03:02.2]} 5. Nbd2 {[%clk 0:02:58.5]}
5... h6 {[%clk 0:03:02.9]} 6. g3 {[%clk 0:02:58.9]} 6... Nbd7 {[%clk 0:03:03.4]}
7. Bg2 {[%clk 0:02:59.4]} 7... e6 {[%clk 0:03:03.9]} 8. O-O {[%clk 0:02:59.3]}
8... Bd6 {[%clk 0:03:04.3]} 9. Re1 {[%clk 0:02:59.7]} 9... Bh7 {[%clk
0:03:03.2]} 10. e4 {[%clk 0:02:59.7]} 10... dxe4 {[%clk 0:02:53.9]} 11. dxe4
{[%clk 0:03:00.6]} 11... Bc5 {[%clk 0:02:53]} 12. e5 {[%clk 0:02:43.4]} 12...
Nd5 {[%clk 0:02:52.6]} 13. a3 {[%clk 0:02:44]} 13... a5 {[%clk 0:02:52.5]} 14.
c4 {[%clk 0:02:44.4]} 14... N5b6 {[%clk 0:02:49.9]} 15. Ne4 {[%clk 0:02:45]}
15... O-O {[%clk 0:02:50]} 16. Nd6 {[%clk 0:02:04.9]} 16... Qc7 {[%clk 0:02:50]}
17. Qd2 {[%clk 0:02:00.8]} 17... Rad8 {[%clk 0:02:48.5]} 18. b4 {[%clk
0:01:57.9]} 18... axb4 {[%clk 0:01:46]} 19. axb4 {[%clk 0:01:58.8]} 19... Bxd6
{[%clk 0:01:46.5]} 20. exd6 {[%clk 0:01:58.3]} 20... Qb8 {[%clk 0:01:46.4]} 21.
Qd4 {[%clk 0:01:49]} 21... Nf6 {[%clk 0:01:43.8]} 22. c5 {[%clk 0:01:49.3]}
22... Nbd5 {[%clk 0:01:39.9]} 23. Ne5 {[%clk 0:01:46.3]} 23... Kh8 {[%clk
0:01:37.4]} 24. Ng4 {[%clk 0:01:40.4]} 24... b6 {[%clk 0:01:24.7]} 25. Bxd5
{[%clk 0:01:33.1]} 25... bxc5 {[%clk 0:01:23.3]} 26. bxc5 {[%clk 0:01:34]} 26...
e5 {[%clk 0:01:18.4]} 27. Nxe5 {[%clk 0:01:20.3]} 27... cxd5 {[%clk 0:01:12]}
28. Ng4 {[%clk 0:01:05.6]} 28... Nh5 {[%clk 0:01:07]} 29. Nxh6 {[%clk 0:01:01]}
29... Qc8 {[%clk 0:00:50.7]} 30. Ra7 {[%clk 0:00:48.5]} 30... Bg6 {[%clk
0:00:34.7]} 31. Ree7 {[%clk 0:00:40.6]} 31... Qh3 {[%clk 0:00:06.9]} 32. Nxf7+
{[%clk 0:00:20.8]} 32... Rxf7 {[%clk 0:00:05]} 33. Rxf7 {[%clk 0:00:20.7]} 33...
Be4 {[%clk 0:00:05.3]} 34. f3 {[%clk 0:00:21.1]} 34... Rg8 {[%clk 0:00:02.3]}
35. fxe4 {[%clk 0:00:19]} 35... Nxg3 {[%clk 0:00:03]} 36. hxg3 {[%clk
0:00:17.4]} 36... Qxg3+ {[%clk 0:00:03.2]} 37. Kf1 {[%clk 0:00:17.9]} 37... Qh3+
{[%clk 0:00:02.8]} 38. Ke2 {[%clk 0:00:18.2]} 38... Qg4+ {[%clk 0:00:02.6]} 39.
Kd2 {[%clk 0:00:18]} 39... Qg5+ {[%clk 0:00:01.9]} 40. Qe3 {[%clk 0:00:17.4]}
40... Qg2+ {[%clk 0:00:01.5]} 41. Qe2 {[%clk 0:00:17.8]} 41... Qg5+ {[%clk
0:00:01.7]} 42. Kc2 {[%clk 0:00:18.3]} 1-0

[Event "Late-Titled-Tuesday-Blitz-September-05-2023"]
[Site "Chess.com"]
[Date "2023.09.05"]
[Round "6"]
[White "Leo_C"]
[Black "dretch"]
[Result "1-0"]
[WhiteElo "2644"]
[BlackElo "2854"]
[TimeControl "180+1"]
[EndTime "15:07:13 PDT"]
[Termination "Leo_C won by resignation"]

1. d4 {[%clk 0:03:00.9]} 1... d5 {[%clk 0:02:57.9]} 2. c4 {[%clk 0:03:01]} 2...
c6 {[%clk 0:02:57.8]} 3. Nf3 {[%clk 0:03:00.9]} 3... Nf6 {[%clk 0:02:57.4]} 4.
Nc3 {[%clk 0:03:00.6]} 4... dxc4 {[%clk 0:02:57.4]} 5. e4 {[%clk 0:03:00.3]}
5... b5 {[%clk 0:02:57.4]} 6. Be2 {[%clk 0:03:00.6]} 6... e6 {[%clk 0:02:57.2]}
7. O-O {[%clk 0:03:00.2]} 7... Be7 {[%clk 0:02:57.1]} 8. e5 {[%clk 0:02:40.3]}
8... Nd5 {[%clk 0:02:57.1]} 9. Ne4 {[%clk 0:02:40.4]} 9... O-O {[%clk
0:02:51.5]} 10. h4 {[%clk 0:02:31.2]} 10... Nd7 {[%clk 0:02:43.6]} 11. Bg5
{[%clk 0:02:28.1]} 11... f6 {[%clk 0:02:43.7]} 12. exf6 {[%clk 0:02:27.9]} 12...
gxf6 {[%clk 0:02:36.4]} 13. Bh6 {[%clk 0:02:27.6]} 13... Rf7 {[%clk 0:02:36.6]}
14. Qc2 {[%clk 0:02:26.2]} 14... Bf8 {[%clk 0:02:32.2]} 15. Bxf8 {[%clk
0:02:21.9]} 15... Qxf8 {[%clk 0:02:32]} 16. b3 {[%clk 0:02:22.4]} 16... cxb3
{[%clk 0:02:24.7]} 17. axb3 {[%clk 0:02:23.3]} 17... Nf4 {[%clk 0:02:19.2]} 18.
Rfe1 {[%clk 0:02:16.9]} 18... Bb7 {[%clk 0:02:05.8]} 19. Bf1 {[%clk 0:02:14.1]}
19... e5 {[%clk 0:01:52.5]} 20. dxe5 {[%clk 0:01:54.2]} 20... fxe5 {[%clk
0:01:45.8]} 21. Nfg5 {[%clk 0:01:46.4]} 21... Re7 {[%clk 0:01:36]} 22. g3 {[%clk
0:01:26.6]} 22... Ne6 {[%clk 0:01:21.2]} 23. Nxe6 {[%clk 0:01:25.8]} 23... Rxe6
{[%clk 0:01:22.1]} 24. Bh3 {[%clk 0:01:08.3]} 24... Qe7 {[%clk 0:01:01.4]} 25.
Bxe6+ {[%clk 0:01:05.3]} 25... Qxe6 {[%clk 0:01:01.1]} 26. Nc5 {[%clk
0:01:03.3]} 26... Nxc5 {[%clk 0:00:57]} 27. Qxc5 {[%clk 0:01:04.2]} 27... e4
{[%clk 0:00:44.3]} 28. Rxa7 {[%clk 0:01:01.1]} 28... Rxa7 {[%clk 0:00:43.3]} 29.
Qxa7 {[%clk 0:01:02]} 29... Qe7 {[%clk 0:00:33.1]} 30. b4 {[%clk 0:00:46.9]}
30... Kf7 {[%clk 0:00:28.2]} 31. Qd4 {[%clk 0:00:34.8]} 31... c5 {[%clk
0:00:28.2]} 32. bxc5 {[%clk 0:00:31.3]} 32... Bc6 {[%clk 0:00:20.6]} 33. Qh8
{[%clk 0:00:23.7]} 33... Ke6 {[%clk 0:00:18.9]} 34. Rd1 {[%clk 0:00:20.7]} 34...
Qxc5 {[%clk 0:00:17.1]} 35. Qxh7 {[%clk 0:00:19.5]} 35... b4 {[%clk 0:00:17.1]}
36. Qh6+ {[%clk 0:00:18.1]} 36... Ke7 {[%clk 0:00:16.7]} 37. Qg7+ {[%clk
0:00:17.8]} 37... Ke6 {[%clk 0:00:16.9]} 38. Rd8 {[%clk 0:00:14.8]} 38... b3
{[%clk 0:00:14.8]} 39. Qg8+ {[%clk 0:00:10.4]} 39... Kf6 {[%clk 0:00:13.9]} 40.
Rf8+ {[%clk 0:00:10.1]} 40... Ke5 {[%clk 0:00:14.3]} 41. Qg7+ {[%clk 0:00:09.8]}
41... Kd5 {[%clk 0:00:14.2]} 42. Rf5+ {[%clk 0:00:09.4]} 42... Kc4 {[%clk
0:00:14.7]} 43. Rxc5+ {[%clk 0:00:09.7]} 43... Kxc5 {[%clk 0:00:15.6]} 44. Qc3+
{[%clk 0:00:09.9]} 1-0

[Event "Late-Titled-Tuesday-Blitz-September-05-2023"]
[Site "Chess.com"]
[Date "2023.09.05"]
[Round "6"]
[White "OYAcosta"]
[Black "HajiyevKanan"]
[Result "0-1"]
[WhiteElo "2264"]
[BlackElo "2472"]
[TimeControl "180+1"]
[EndTime "15:07:20 PDT"]
[Termination "HajiyevKanan won on time"]

1. d4 {[%clk 0:02:56.6]} 1... Nf6 {[%clk 0:02:59.3]} 2. Bf4 {[%clk 0:02:57]}
2... c5 {[%clk 0:02:59.6]} 3. e3 {[%clk 0:02:57.1]} 3... cxd4 {[%clk 0:03:00.2]}
4. exd4 {[%clk 0:02:57.5]} 4... d5 {[%clk 0:03:01.1]} 5. Nf3 {[%clk 0:02:56.7]}
5... Nc6 {[%clk 0:03:01.6]} 6. c3 {[%clk 0:02:56.8]} 6... Bg4 {[%clk 0:03:01.9]}
7. Be2 {[%clk 0:02:56.5]} 7... e6 {[%clk 0:03:02]} 8. Nbd2 {[%clk 0:02:57]} 8...
Bd6 {[%clk 0:03:02.5]} 9. Bg3 {[%clk 0:02:57.1]} 9... O-O {[%clk 0:03:02.5]} 10.
O-O {[%clk 0:02:57.7]} 10... Rb8 {[%clk 0:03:01.3]} 11. a4 {[%clk 0:02:57.3]}
11... a6 {[%clk 0:03:01.1]} 12. Ne5 {[%clk 0:02:56.6]} 12... Bf5 {[%clk
0:02:58.8]} 13. b4 {[%clk 0:02:48.4]} 13... Qc7 {[%clk 0:02:49.7]} 14. f4 {[%clk
0:02:26.9]} 14... a5 {[%clk 0:02:41.2]} 15. Rc1 {[%clk 0:02:18]} 15... axb4
{[%clk 0:02:32.5]} 16. cxb4 {[%clk 0:02:15.3]} 16... Qb6 {[%clk 0:02:32.4]} 17.
b5 {[%clk 0:02:03.6]} 17... Nxd4 {[%clk 0:02:15.3]} 18. Bf2 {[%clk 0:01:59.9]}
18... Nxe2+ {[%clk 0:02:08.4]} 19. Qxe2 {[%clk 0:01:59.9]} 19... Qa5 {[%clk
0:02:07.1]} 20. Ra1 {[%clk 0:01:17.6]} 20... Rfc8 {[%clk 0:01:53.7]} 21. g4
{[%clk 0:01:12.4]} 21... Bxe5 {[%clk 0:01:30.2]} 22. gxf5 {[%clk 0:01:11.7]}
22... Bxf4 {[%clk 0:01:26.3]} 23. Nb3 {[%clk 0:01:11.8]} 23... Qc7 {[%clk
0:01:19.3]} 24. fxe6 {[%clk 0:01:10.6]} 24... Bxh2+ {[%clk 0:01:19.2]} 25. Kh1
{[%clk 0:01:10.6]} 25... Re8 {[%clk 0:01:08.5]} 26. Bd4 {[%clk 0:01:01.6]} 26...
Bd6 {[%clk 0:00:43.9]} 27. Rxf6 {[%clk 0:00:34.7]} 27... fxe6 {[%clk 0:00:17.8]}
28. Rxe6 {[%clk 0:00:24.1]} 28... Qd7 {[%clk 0:00:15.6]} 29. Re1 {[%clk
0:00:19.5]} 29... Rf8 {[%clk 0:00:11.9]} 30. Rxd6 {[%clk 0:00:09.5]} 30... Qxd6
{[%clk 0:00:10.7]} 31. Qe6+ {[%clk 0:00:09.1]} 31... Qxe6 {[%clk 0:00:11.1]} 32.
Rxe6 {[%clk 0:00:10]} 32... Rf3 {[%clk 0:00:10.1]} 33. Nc5 {[%clk 0:00:07.6]}
33... b6 {[%clk 0:00:10.8]} 34. Na6 {[%clk 0:00:05.1]} 34... Rc8 {[%clk
0:00:09.6]} 35. Re7 {[%clk 0:00:03.1]} 35... Rg3 {[%clk 0:00:07.3]} 36. Kh2
{[%clk 0:00:03.2]} 36... Rg4 {[%clk 0:00:07]} 37. Bxb6 {[%clk 0:00:02.7]} 37...
Rc2+ {[%clk 0:00:07.1]} 38. Kh3 {[%clk 0:00:03.3]} 38... Rg6 {[%clk 0:00:07]}
39. Bd4 {[%clk 0:00:01.9]} 39... h5 {[%clk 0:00:06.8]} 0-1

[Event "Late-Titled-Tuesday-Blitz-September-05-2023"]
[Site "Chess.com"]
[Date "2023.09.05"]
[Round "6"]
[White "zajka-molotok"]
[Black "BeanScreen"]
[Result "0-1"]
[WhiteElo "2526"]
[BlackElo "2701"]
[TimeControl "180+1"]
[EndTime "15:07:27 PDT"]
[Termination "BeanScreen won by checkmate"]

1. d4 {[%clk 0:03:00.9]} 1... d5 {[%clk 0:02:59.4]} 2. c4 {[%clk 0:03:00.8]}
2... e6 {[%clk 0:02:59.8]} 3. Nc3 {[%clk 0:03:00.6]} 3... c5 {[%clk 0:03:00.2]}
4. cxd5 {[%clk 0:03:00.3]} 4... cxd4 {[%clk 0:03:00.5]} 5. Qa4+ {[%clk
0:02:59.4]} 5... Bd7 {[%clk 0:03:00.6]} 6. Qxd4 {[%clk 0:02:59.3]} 6... exd5
{[%clk 0:03:01.1]} 7. Qxd5 {[%clk 0:02:58.6]} 7... Nf6 {[%clk 0:03:00.8]} 8. Qd1
{[%clk 0:02:58.4]} 8... Bc5 {[%clk 0:02:59.8]} 9. Nf3 {[%clk 0:02:57.4]} 9...
O-O {[%clk 0:02:59.3]} 10. e3 {[%clk 0:02:56]} 10... Qe7 {[%clk 0:02:59.1]} 11.
Be2 {[%clk 0:02:54.9]} 11... Rd8 {[%clk 0:02:59.2]} 12. O-O {[%clk 0:02:54.3]}
12... Nc6 {[%clk 0:02:59]} 13. b3 {[%clk 0:02:47.6]} 13... Ne5 {[%clk
0:02:33.8]} 14. Nd5 {[%clk 0:02:38]} 14... Nxf3+ {[%clk 0:01:37]} 15. Bxf3
{[%clk 0:02:35.2]} 15... Nxd5 {[%clk 0:01:37.5]} 16. Qxd5 {[%clk 0:02:07.9]}
16... Bb5 {[%clk 0:01:36.1]} 17. Qxb7 {[%clk 0:02:07.9]} 17... Qxb7 {[%clk
0:01:32.6]} 18. Bxb7 {[%clk 0:02:08.8]} 18... Rab8 {[%clk 0:01:33.2]} 19. Bf3
{[%clk 0:01:59.9]} 19... Bxf1 {[%clk 0:01:32.5]} 20. Kxf1 {[%clk 0:02:00.8]}
20... Rbc8 {[%clk 0:01:16.7]} 21. Bb2 {[%clk 0:01:37.2]} 21... Bb6 {[%clk
0:01:15.7]} 22. Rc1 {[%clk 0:00:51.8]} 22... Rxc1+ {[%clk 0:01:15]} 23. Bxc1
{[%clk 0:00:52.7]} 23... Rc8 {[%clk 0:01:15.2]} 24. Bb2 {[%clk 0:00:34.8]} 24...
Rc2 {[%clk 0:01:15.2]} 25. Be5 {[%clk 0:00:34.9]} 25... Rxa2 {[%clk 0:01:14.4]}
26. Bd5 {[%clk 0:00:32.9]} 26... Ra5 {[%clk 0:01:11.6]} 27. e4 {[%clk
0:00:33.1]} 27... Ra2 {[%clk 0:01:11.2]} 28. Bg3 {[%clk 0:00:33]} 28... Rd2
{[%clk 0:01:09.4]} 29. f3 {[%clk 0:00:30.6]} 29... Kf8 {[%clk 0:01:06.7]} 30.
Be1 {[%clk 0:00:29.1]} 30... Rc2 {[%clk 0:01:03.5]} 31. Bb4+ {[%clk 0:00:28.5]}
31... Ke8 {[%clk 0:01:03.3]} 32. Bc4 {[%clk 0:00:25.4]} 32... Rf2+ {[%clk
0:01:02.5]} 33. Ke1 {[%clk 0:00:24.8]} 33... Rxg2 {[%clk 0:01:02.1]} 34. Bb5+
{[%clk 0:00:22.9]} 34... Kd8 {[%clk 0:01:01.8]} 35. Bd6 {[%clk 0:00:21.7]} 35...
Rxh2 {[%clk 0:01:00]} 36. Bxh2 {[%clk 0:00:21.1]} 36... Ke7 {[%clk 0:00:53.8]}
37. f4 {[%clk 0:00:16.6]} 37... Bc7 {[%clk 0:00:53.3]} 38. Ke2 {[%clk
0:00:15.7]} 38... g5 {[%clk 0:00:53.7]} 39. Kf3 {[%clk 0:00:15.7]} 39... h5
{[%clk 0:00:49.6]} 40. e5 {[%clk 0:00:14.7]} 40... g4+ {[%clk 0:00:44.6]} 41.
Kg3 {[%clk 0:00:14.7]} 41... f5 {[%clk 0:00:42]} 42. Bg1 {[%clk 0:00:10.8]}
42... a5 {[%clk 0:00:38.2]} 43. Bc5+ {[%clk 0:00:10.1]} 43... Kf7 {[%clk
0:00:38.5]} 44. Bc4+ {[%clk 0:00:09.9]} 44... Kg6 {[%clk 0:00:38.1]} 45. Be7
{[%clk 0:00:08.5]} 45... Bb6 {[%clk 0:00:36.4]} 46. e6 {[%clk 0:00:08.8]} 46...
Be3 {[%clk 0:00:34]} 47. Bd6 {[%clk 0:00:07.4]} 47... h4+ {[%clk 0:00:33.8]} 48.
Kg2 {[%clk 0:00:05.5]} 48... h3+ {[%clk 0:00:33.6]} 49. Kh2 {[%clk 0:00:04.9]}
49... Kh5 {[%clk 0:00:32.1]} 50. e7 {[%clk 0:00:04.9]} 50... Kh4 {[%clk
0:00:32.6]} 51. Bc5 {[%clk 0:00:02.1]} 51... g3+ {[%clk 0:00:32.6]} 52. Kh1
{[%clk 0:00:02.4]} 52... g2+ {[%clk 0:00:33.4]} 53. Kh2 {[%clk 0:00:03]} 53...
g1=Q# {[%clk 0:00:33.8]} 0-1

[Event "Late-Titled-Tuesday-Blitz-September-05-2023"]
[Site "Chess.com"]
[Date "2023.09.05"]
[Round "6"]
[White "Perdomov"]
[Black "tylityli"]
[Result "1-0"]
[WhiteElo "2193"]
[BlackElo "2312"]
[TimeControl "180+1"]
[EndTime "15:07:32 PDT"]
[Termination "Perdomov won on time"]

1. d4 {[%clk 0:03:00.9]} 1... Nf6 {[%clk 0:02:59.4]} 2. c4 {[%clk 0:03:01.1]}
2... e6 {[%clk 0:02:59.3]} 3. e3 {[%clk 0:03:02]} 3... Bb4+ {[%clk 0:02:58.9]}
4. Bd2 {[%clk 0:03:00.9]} 4... Bxd2+ {[%clk 0:02:55.5]} 5. Nxd2 {[%clk
0:03:01.8]} 5... d6 {[%clk 0:02:54]} 6. Bd3 {[%clk 0:03:02.7]} 6... Qe7 {[%clk
0:02:52.1]} 7. Rc1 {[%clk 0:03:03.6]} 7... e5 {[%clk 0:02:52.1]} 8. Ne2 {[%clk
0:03:02.4]} 8... e4 {[%clk 0:02:51.7]} 9. Bb1 {[%clk 0:02:55.6]} 9... Bf5 {[%clk
0:02:51]} 10. Ng3 {[%clk 0:02:55.4]} 10... Bg6 {[%clk 0:02:50.8]} 11. Qc2 {[%clk
0:02:17.5]} 11... Nbd7 {[%clk 0:02:30.2]} 12. Ndxe4 {[%clk 0:02:16.8]} 12...
Nxe4 {[%clk 0:02:27.8]} 13. Nxe4 {[%clk 0:02:16]} 13... O-O {[%clk 0:02:26.9]}
14. h4 {[%clk 0:02:12.4]} 14... h6 {[%clk 0:02:16]} 15. h5 {[%clk 0:02:09]}
15... Bh7 {[%clk 0:02:09.2]} 16. g4 {[%clk 0:01:14.5]} 16... Rae8 {[%clk
0:01:50.3]} 17. f3 {[%clk 0:00:59.1]} 17... f5 {[%clk 0:01:43.1]} 18. gxf5
{[%clk 0:00:45.7]} 18... Bxf5 {[%clk 0:01:42.6]} 19. O-O {[%clk 0:00:28.2]}
19... Qh4 {[%clk 0:01:35.2]} 20. Qg2 {[%clk 0:00:27.8]} 20... Qxh5 {[%clk
0:01:32.3]} 21. Ng3 {[%clk 0:00:24.2]} 21... Qg5 {[%clk 0:01:05.7]} 22. Nxf5
{[%clk 0:00:24.4]} 22... Rxf5 {[%clk 0:01:05.4]} 23. Bxf5 {[%clk 0:00:23.7]}
23... Qxf5 {[%clk 0:01:05.7]} 24. e4 {[%clk 0:00:24.4]} 24... Qf4 {[%clk
0:01:03.3]} 25. Rc3 {[%clk 0:00:20.2]} 25... Nf6 {[%clk 0:00:51.2]} 26. Qh2
{[%clk 0:00:17.6]} 26... Qg5+ {[%clk 0:00:45.4]} 27. Kh1 {[%clk 0:00:18.5]}
27... Kh7 {[%clk 0:00:31.8]} 28. f4 {[%clk 0:00:18.6]} 28... Qg6 {[%clk
0:00:25.6]} 29. f5 {[%clk 0:00:18.7]} 29... Qg4 {[%clk 0:00:25.8]} 30. Rg3
{[%clk 0:00:18.9]} 30... Qxe4+ {[%clk 0:00:25.2]} 31. Qg2 {[%clk 0:00:15.2]}
31... Qh4+ {[%clk 0:00:17.9]} 32. Kg1 {[%clk 0:00:14.5]} 32... Qxd4+ {[%clk
0:00:17.5]} 33. Kh2 {[%clk 0:00:13.6]} 33... Re7 {[%clk 0:00:14]} 34. Rg1 {[%clk
0:00:09.8]} 34... Nh5 {[%clk 0:00:09.1]} 35. Rh3 {[%clk 0:00:05.8]} 35... Qxc4
{[%clk 0:00:06.2]} 36. Qg6+ {[%clk 0:00:05.4]} 36... Kh8 {[%clk 0:00:03.6]} 37.
Rxh5 {[%clk 0:00:05.7]} 37... Qf4+ {[%clk 0:00:01.6]} 38. Qg3 {[%clk 0:00:04.7]}
38... Qd4 {[%clk 0:00:01.3]} 39. Rxh6+ {[%clk 0:00:03.6]} 39... Kg8 {[%clk
0:00:01.4]} 40. Rg6 {[%clk 0:00:02.9]} 40... Re2+ {[%clk 0:00:01.4]} 41. Rg2
{[%clk 0:00:03.1]} 41... Re7 {[%clk 0:00:01.1]} 42. f6 {[%clk 0:00:02.8]} 1-0